fUSD/lending_fUSD_20251028
["ID","MTS","AMOUNT","RATE_DAILY","PERIOD"]
[392546349,1761640056927,729.36160807,0.00012,2]
[392546350,1761640057034,600.0,0.00012,2]
[392546351,1761640057468,600.0,0.00012,2]
[392546352,1761640057823,600.0,0.00012,2]
[392546353,1761640058173,600.0,0.00012,2]
[392546354,1761640058517,600.0,0.00012,2]
[392546355,1761640058897,600.0,0.00012,2]
[392546356,1761640059601,600.0,0.00012,2]
[392546357,1761640059970,600.0,0.00012,2]
[392546358,1761640060323,600.0,0.00012,2]
[392546359,1761640060702,600.0,0.00012,2]
[392546360,1761640061056,600.0,0.00012,2]
[392546361,1761640061483,818.02259135,0.00012,2]
[392546362,1761640075955,43346.38346205,0.00015,2]
[392546363,1761640075984,100000.0,0.00015,2]
[392546364,1761640076013,44347.95550517,0.00015,2]
[392546386,1761640231880,-2213.7949294,0.00015807,2]
[392546389,1761640231891,-152.68,0.00015991,2]
[392546391,1761640231900,-152.68,0.00016791,2]
[392546393,1761640231909,-2958.60010857,0.000175,2]
[392546395,1761640231920,-250.0,0.0001759,2]
[392546397,1761640231929,-152.68,0.0001759,2]
[392546398,1761640231939,-6295.03169231,0.00018,2]
[392546399,1761640231949,-152.68,0.0001839,2]
[392546400,1761640231962,-152.68,0.00019189,2]
[392546401,1761640231971,-152.68,0.00019989,2]
[392546402,1761640231983,-4777.40485961,0.0002,2]
[392546403,1761640231992,-152.68,0.00020788,2]
[392546404,1761640232003,-152.68,0.00021588,2]
[392546405,1761640232012,-152.68,0.00022388,2]
[392546406,1761640232021,-152.68,0.00023187,2]
[392546407,1761640232030,-152.68,0.00023987,2]
[392546408,1761640232043,-152.68,0.00024786,2]
[392546409,1761640232053,-152.68,0.00025586,2]
[392546410,1761640232062,-152.68,0.00026385,2]
[392546411,1761640232072,-152.68,0.00027185,2]
[392546412,1761640232082,-152.68,0.00027985,2]
[392546413,1761640232096,-152.68,0.00028784,2]
[392546414,1761640232105,-166.66,0.00028999,30]
[392546415,1761640232115,-152.68,0.00029584,2]
[392546416,1761640232124,-500.0,0.00029956,7]
[392546417,1761640232134,-700.0,0.00029956,7]
[392546418,1761640232143,-500.0,0.00029956,7]
[392546419,1761640232153,-383.0,0.00029956,2]
[392546421,1761640232162,-298.0369978,0.0003,3]
[392546423,1761640232171,-152.0,0.00030061,3]
[392546425,1761640232181,-1000.0,0.00030146,2]
[392546427,1761640232190,-171.23,0.00030383,2]
[392546429,1761640232199,-152.68,0.00030383,2]
[392546430,1761640232208,-520.65,0.00030511,2]
[392546432,1761640232217,-202.86,0.00030545,2]
[392546434,1761640232227,-1577.17,0.00030579,2]
[392546436,1761640232236,-700.0,0.00030778,7]
[392546438,1761640232245,-150.0,0.00030778,2]
[392546440,1761640232255,-10578.63204688,0.00031,5]
[392546452,1761640232469,-7257.73485404,0.00031,5]
[392546453,1761640232480,-1052.42829316,0.00031,5]
[392546454,1761640232494,-27801.31987092,0.00031,5]
[392546460,1761640237863,-787.725,0.00031,5]
[392546464,1761640238025,-13835.2823277,0.00031,5]
[392546465,1761640238037,-10290.0,0.00031,5]
[392546466,1761640238049,-70994.90894719,0.00031,5]
[392546486,1761640239981,-572.1881728,0.00031,5]
[392546505,1761640240089,-32640.0,0.00031,5]
[392546552,1761640243189,-2084.2038223,0.00031,5]
[392546553,1761640243295,-10324.90836051,0.00031,5]
[392546554,1761640243308,-1521.41422597,0.00031,5]
[392546561,1761640245887,-755.43446412,0.00031,5]
[392546562,1761640245943,-471.91972276,0.00031,5]
[392546563,1761640246157,-1311.74793665,0.00031,5]
[392548102,1761640344080,500.0,0.00015,30]
[392548103,1761640344432,500.0,0.00015,30]
[392548104,1761640344802,500.0,0.00015,30]
[392548105,1761640345115,500.0,0.00012,2]
[392548106,1761640345676,500.0,0.00012,2]
[392548107,1761640345866,970.24484842,0.00012,2]
[392548154,1761640506381,177.0,0.000205,3]
[392548155,1761640506616,175.0,0.000205,3]
[392548156,1761640506828,175.0,0.000205,3]
[392548157,1761640507061,175.0,0.000205,3]
[392548158,1761640507290,175.0,0.000205,3]
[392548159,1761640508141,160.0,0.000205,3]
[392548160,1761640508372,155.0,0.000205,3]
[392548161,1761640508600,155.0,0.000205,3]
[392548162,1761640508812,155.0,0.000205,3]
[392548163,1761640509036,155.0,0.000205,3]
[392548164,1761640509257,155.0,0.000205,3]
[392548165,1761640509481,155.0,0.000205,3]
[392548166,1761640510036,155.0,0.000205,3]
[392548167,1761640510404,155.0,0.000205,3]
[392548168,1761640510618,155.0,0.000205,3]
[392548169,1761640510848,155.0,0.000205,3]
[392548170,1761640511085,155.0,0.000205,3]
[392548171,1761640511299,155.0,0.000205,3]
[392548172,1761640511638,155.0,0.000205,3]
[392548173,1761640511869,155.0,0.000205,3]
[392548174,1761640512100,155.0,0.000205,3]
[392548175,1761640512468,155.0,0.000205,3]
[392548176,1761640512860,155.0,0.000205,3]
[392548200,1761640892062,576.0,0.0002,30]
[392548205,1761640945642,-256.62775767,0.000279,3]
[392548220,1761641121460,166.65,0.0002,10]
[392548247,1761641432091,-250.0,0.00017,2]
[392548248,1761641432101,-5256.0,0.000261,3]
[392548249,1761641432110,-5515.0,0.000267,5]
[392548250,1761641432119,-880.0,0.00026899,2]
[392548251,1761641432128,-150.0,0.00028258,4]
[392548252,1761641432138,-194.91,0.00029388,2]
[392548253,1761641432147,-168.0,0.00029435,2]
[392548254,1761641432157,-168.0,0.00029522,2]
[392548255,1761641432166,-168.0,0.00029663,2]
[392548256,1761641432176,-300.0,0.000297,2]
[392548257,1761641432186,-500.0,0.00029956,7]
[392548258,1761641432195,-500.0,0.00029956,7]
[392548259,1761641432205,-700.0,0.00029956,7]
[392548260,1761641432215,-168.0,0.0003004,2]
[392548261,1761641432226,-173.38,0.00030128,2]
[392548262,1761641432235,-2010.82,0.0003018,2]
[392548263,1761641432245,-410.28585585,0.00030183,2]
[392548264,1761641432255,-151.0,0.00030227,2]
[392548265,1761641432264,-151.0,0.00030227,2]
[392548266,1761641432274,-151.0,0.00030227,2]
[392548267,1761641432283,-151.0,0.00030227,2]
[392548268,1761641432292,-151.0,0.00030227,2]
[392548269,1761641432302,-151.0,0.00030227,2]
[392548270,1761641432312,-151.0,0.00030227,2]
[392548271,1761641432321,-151.0,0.00030227,2]
[392548272,1761641432330,-151.0,0.00030227,2]
[392548273,1761641432339,-151.0,0.00030227,2]
[392548274,1761641432348,-151.0,0.00030227,2]
[392548275,1761641432358,-151.0,0.00030227,2]
[392548276,1761641432367,-151.0,0.00030227,2]
[392548277,1761641432377,-151.0,0.00030227,2]
[392548278,1761641432387,-151.0,0.00030227,2]
[392548279,1761641432397,-151.0,0.00030227,2]
[392548280,1761641432410,-167.21191613,0.00030227,2]
[392548281,1761641432419,-3091.631167,0.00030245,2]
[392548282,1761641432428,-6067.63663057,0.00030245,2]
[392548283,1761641432440,-1023.11758796,0.00030245,2]
[392548284,1761641432457,-6396.95761027,0.00030245,2]
[392548285,1761641432466,-466.0785228,0.00030245,2]
[392548287,1761641432475,-469.17621752,0.00030251,2]
[392548289,1761641432486,-1305.49881872,0.00030257,2]
[392548291,1761641432497,-2110.52202478,0.00030257,2]
[392548293,1761641432508,-10881.77164738,0.00030257,2]
[392548295,1761641432519,-42129.35419932,0.00030257,2]
[392548297,1761641432528,-500.0,0.00030273,5]
[392548299,1761641432537,-501.57961135,0.00030273,5]
[392548301,1761641432546,-500.0,0.00030273,5]
[392548303,1761641432556,-500.0,0.00030273,2]
[392548306,1761641432565,-161.32685277,0.00030273,5]
[392548308,1761641432573,-500.0,0.00030273,5]
[392548311,1761641432583,-167.07689273,0.00030273,5]
[392548313,1761641432592,-510.48290999,0.00030273,5]
[392548316,1761641432601,-200.0,0.00030283,2]
[392548319,1761641432610,-150.0,0.00030305,2]
[392548322,1761641432619,-200.0,0.00030308,2]
[392548324,1761641432628,-820.80326934,0.00030311,2]
[392548326,1761641432637,-173.38,0.00030339,2]
[392548328,1761641432647,-173.38,0.0003055,2]
[392548330,1761641432656,-500.0,0.000306,7]
[392548332,1761641432666,-500.0,0.000306,7]
[392548334,1761641432676,-236.128,0.00030637,26]
[392548336,1761641432685,-820.80326935,0.0003065,2]
[392548338,1761641432694,-571.55,0.00030707,2]
[392548340,1761641432703,-173.38,0.00030761,2]
[392548342,1761641432712,-150.0,0.00030777,7]
[392548344,1761641432721,-700.0,0.00030778,7]
[392548346,1761641432731,-173.38,0.00030972,2]
[392548348,1761641432741,-526634.151955,0.00031,5]
[392548350,1761641432751,-200.0,0.00031,2]
[392548352,1761641432760,-168.0,0.00031004,2]
[392548354,1761641432769,-509.669,0.00031044,2]
[392548356,1761641432778,-511.136,0.00031044,2]
[392548358,1761641432788,-1456.946,0.00031044,2]
[392548360,1761641432796,-818.0,0.00031044,2]
[392548362,1761641432807,-1008.879,0.00031044,2]
[392548364,1761641432816,-3487.0,0.00031044,2]
[392548366,1761641432825,-1186.0,0.00031044,2]
[392548368,1761641432834,-904.0,0.00031044,2]
[392548371,1761641432844,-168.0,0.00031099,2]
[392548373,1761641432855,-173.38,0.00031183,2]
[392548374,1761641432864,-168.0,0.00031189,7]
[392548376,1761641432873,-4702.14582564,0.0003129,2]
[392548378,1761641432883,-156.13032526,0.0003129,15]
[392548380,1761641432892,-493.4966055,0.0003129,2]
[392548382,1761641432901,-428.7490214,0.000313,2]
[392548383,1761641432910,-1023.60975802,0.000313,2]
[392548384,1761641432919,-4702.14582556,0.00031303,2]
[392548385,1761641432928,-493.4966055,0.00031308,2]
[392548386,1761641432937,-200.0,0.0003131,2]
[392548387,1761641432946,-1471.24358899,0.00031316,2]
[392548388,1761641432955,-4702.14582556,0.00031316,2]
[392548389,1761641432964,-493.4966055,0.00031326,2]
[392548390,1761641432973,-4702.14582556,0.00031329,2]
[392548391,1761641432982,-1425.0,0.00031332,2]
[392548392,1761641432991,-4702.14582556,0.00031342,2]
[392548393,1761641433000,-493.4966055,0.00031344,2]
[392548394,1761641433009,-1425.0,0.00031349,2]
[392548395,1761641433018,-2500.0,0.0003135,7]
[392548396,1761641433027,-4702.14582556,0.00031355,2]
[392548397,1761641433036,-428.7490214,0.00031358,2]
[392548398,1761641433045,-2500.0,0.00031359,7]
[392548399,1761641433054,-493.4966055,0.00031361,2]
[392548400,1761641433063,-1425.0,0.00031363,2]
[392548401,1761641433072,-1000.0,0.00031365,2]
[392548402,1761641433081,-2500.0,0.00031368,7]
[392548403,1761641433091,-4702.14582556,0.00031368,2]
[392548404,1761641433100,-500.0,0.00031373,5]
[392548405,1761641433109,-500.0,0.00031373,5]
[392548406,1761641433117,-2500.0,0.00031377,7]
[392548407,1761641433127,-493.4966055,0.00031379,2]
[392548408,1761641433136,-224.72,0.0003138,2]
[392548409,1761641433145,-224.72,0.0003138,2]
[392548410,1761641433154,-4702.14582556,0.00031381,2]
[392548411,1761641433163,-2500.0,0.00031386,7]
[392548412,1761641433172,-523.79929399,0.00031388,3]
[392548413,1761641433181,-500.0,0.00031388,3]
[392548414,1761641433190,-232.49705598,0.00031388,3]
[392548415,1761641433200,-500.0,0.00031388,3]
[392548416,1761641433209,-500.0,0.00031388,3]
[392548417,1761641433219,-500.0,0.00031388,3]
[392548418,1761641433228,-500.0,0.00031388,3]
[392548419,1761641433238,-500.0,0.00031388,3]
[392548420,1761641433247,-500.0,0.00031388,3]
[392548421,1761641433256,-543.56225403,0.00031388,3]
[392548422,1761641433266,-500.0,0.00031388,3]
[392548423,1761641433275,-500.0,0.00031388,3]
[392548424,1761641433285,-500.0,0.00031388,3]
[392548425,1761641433294,-353.3973859,0.00031388,3]
[392548426,1761641433304,-500.0,0.00031388,3]
[392548427,1761641433313,-500.0,0.00031388,3]
[392548428,1761641433322,-500.0,0.00031388,2]
[392548429,1761641433332,-500.0,0.00031388,3]
[392548430,1761641433343,-500.0,0.00031388,3]
[392548431,1761641433354,-500.0,0.00031388,3]
[392548432,1761641433363,-500.0,0.00031388,3]
[392548433,1761641433372,-500.0,0.00031388,3]
[392548434,1761641433382,-500.0,0.00031388,3]
[392548435,1761641433391,-500.0,0.00031388,3]
[392548436,1761641433401,-500.0,0.00031388,3]
[392548437,1761641433415,-500.0,0.00031388,3]
[392548438,1761641433425,-300.0,0.00031389,10]
[392548439,1761641433435,-300.0,0.00031389,10]
[392548440,1761641433447,-300.0,0.00031389,10]
[392548441,1761641433456,-666.0,0.00031389,10]
[392548442,1761641433465,-500.0,0.00031389,2]
[392548443,1761641433475,-500.0,0.00031389,2]
[392548444,1761641433485,-500.0,0.00031389,2]
[392548445,1761641433495,-500.0,0.00031389,2]
[392548446,1761641433506,-500.0,0.00031389,2]
[392548447,1761641433516,-500.0,0.00031389,3]
[392548448,1761641433525,-500.0,0.00031389,2]
[392548449,1761641433535,-500.0,0.00031389,2]
[392548450,1761641433544,-500.0,0.00031389,2]
[392548451,1761641433554,-500.0,0.00031389,3]
[392548452,1761641433564,-500.0,0.00031389,3]
[392548453,1761641433573,-500.0,0.00031389,3]
[392548454,1761641433583,-500.0,0.00031389,3]
[392548455,1761641433593,-500.0,0.00031389,3]
[392548456,1761641433603,-500.0,0.00031389,3]
[392548457,1761641433613,-500.0,0.00031389,3]
[392548458,1761641433626,-646.05,0.00031389,3]
[392548459,1761641433636,-472.95401148,0.00031389,3]
[392548460,1761641433650,-27.04598852,0.00031389,3]
[392548461,1761641433661,-398.63136372,0.00031389,3]
[392548469,1761641437963,-500.0,0.00031388,2]
[392548470,1761641437974,-237.57844766,0.00031389,3]
[392548471,1761641437985,-500.0,0.00031389,3]
[392548472,1761641437994,-500.0,0.00031389,3]
[392548473,1761641438003,-286.00208326,0.00031389,3]
[392548474,1761641438015,-213.99791674,0.00031389,3]
[392548475,1761641438023,-571.61408326,0.00031389,3]
[392548476,1761641438034,-3505.92591674,0.00031389,3]
[392548477,1761641438043,-500.0,0.00031389,3]
[392548478,1761641438051,-68.49408326,0.00031389,3]
[392548479,1761641438062,-431.50591674,0.00031389,3]
[392548480,1761641438072,-157.38213243,0.00031389,3]
[392548481,1761641438084,-342.61786757,0.00031389,3]
[392548482,1761641438093,-307.38213243,0.00031389,3]
[392548483,1761641438174,-479.56786757,0.00031389,3]
[392548484,1761641438188,-500.0,0.00031389,3]
[392548485,1761641438197,-2272.18,0.00031389,3]
[392548486,1761641438207,-500.0,0.00031389,3]
[392548487,1761641438216,-500.0,0.00031389,3]
[392548488,1761641438226,-500.0,0.00031389,3]
[392548489,1761641438236,-460.08509763,0.00031389,3]
[392548490,1761641438245,-500.0,0.00031389,3]
[392548491,1761641438255,-551.55182646,0.00031389,3]
[392548492,1761641438266,-500.0,0.00031389,3]
[392548493,1761641438276,-155.30061301,0.00031389,3]
[392548494,1761641438286,-522.60377896,0.00031389,3]
[392548495,1761641438295,-500.0,0.00031389,2]
[392548496,1761641438305,-503.40090268,0.00031389,3]
[392548497,1761641438314,-244.87485615,0.00031389,3]
[392548498,1761641438324,-500.0,0.00031389,3]
[392548499,1761641438334,-500.0,0.00031389,2]
[392548500,1761641438343,-500.0,0.00031389,3]
[392548501,1761641438353,-500.0,0.00031389,2]
[392548502,1761641438363,-500.0,0.00031389,3]
[392548503,1761641438372,-500.0,0.00031389,3]
[392548504,1761641438386,-326.52198595,0.00031389,3]
[392548505,1761641438396,-500.0,0.00031389,3]
[392548506,1761641438407,-599.64,0.00031389,3]
[392548507,1761641438419,-1185.19,0.00031389,3]
[392548508,1761641438429,-500.0,0.00031389,3]
[392548509,1761641438438,-300.0,0.00031389,2]
[392548510,1761641438448,-221.97699836,0.00031389,3]
[392548511,1761641438459,-500.0,0.00031389,3]
[392548512,1761641438469,-500.0,0.00031389,3]
[392548513,1761641438478,-500.0,0.00031389,3]
[392548514,1761641438492,-1988.63,0.00031389,3]
[392548515,1761641438501,-1084.35,0.00031389,3]
[392548516,1761641438511,-500.0,0.00031389,2]
[392548517,1761641438521,-520.90889966,0.00031389,3]
[392548518,1761641438530,-500.0,0.00031389,3]
[392548519,1761641438540,-567.79280492,0.00031389,3]
[392548520,1761641438550,-500.0,0.00031389,3]
[392548521,1761641438559,-500.0,0.00031389,3]
[392548522,1761641438569,-503.40948109,0.00031389,3]
[392548523,1761641438578,-500.0,0.00031389,3]
[392548524,1761641438591,-648.6925796,0.00031389,3]
[392548525,1761641438601,-517.90017452,0.00031389,3]
[392548526,1761641438610,-522.29547765,0.00031389,3]
[392548527,1761641438620,-596.54,0.00031389,3]
[392548528,1761641438629,-2070.29,0.00031389,3]
[392548529,1761641438639,-500.0,0.00031389,3]
[392548530,1761641438649,-517.50493731,0.00031389,3]
[392548531,1761641438659,-500.0,0.00031389,3]
[392548532,1761641438668,-500.0,0.00031389,3]
[392548533,1761641438677,-2257.29,0.00031389,3]
[392548534,1761641438687,-500.0,0.00031389,3]
[392548535,1761641438697,-500.0,0.00031389,3]
[392548536,1761641438706,-500.0,0.00031389,3]
[392548537,1761641438716,-500.0,0.00031389,3]
[392548538,1761641438725,-617.40648948,0.00031389,3]
[392548539,1761641438735,-500.0,0.00031389,3]
[392548540,1761641438745,-759.89,0.00031389,3]
[392548541,1761641438754,-1650.89,0.00031389,3]
[392548542,1761641438763,-554.96630059,0.00031389,3]
[392548543,1761641438773,-3467.05,0.00031389,2]
[392548544,1761641438785,-500.0,0.00031389,3]
[392548545,1761641438795,-646.95,0.00031389,3]
[392548546,1761641438805,-500.0,0.00031389,3]
[392548547,1761641438814,-329.23180229,0.00031389,3]
[392548548,1761641438824,-500.0,0.00031389,3]
[392548549,1761641438833,-500.0,0.00031389,3]
[392548550,1761641438843,-500.0,0.00031389,3]
[392548551,1761641438853,-500.0,0.0003139,15]
[392548552,1761641438863,-151.0,0.0003139,31]
[392548553,1761641438873,-6314.52653875,0.0003139,3]
[392548554,1761641440306,-500.0,0.00031388,3]
[392548555,1761641440316,-266.87248,0.00031389,2]
[392548556,1761641440326,-4070.90633941,0.0003139,3]
[392548625,1761641445228,-500.0,0.00031388,2]
[392548626,1761641445238,-500.0,0.00031389,3]
[392548627,1761641445247,-17542.43877403,0.0003139,3]
[392548629,1761641446057,-263.47,0.00031388,3]
[392548630,1761641446163,-389.24,0.00031388,3]
[392548631,1761641446174,-190.18544674,0.0003139,3]
[392548632,1761641446187,-715.71744727,0.0003139,3]
[392548633,1761641446200,-858.375,0.0003139,3]
[392548634,1761641446216,-1274.53367447,0.0003139,3]
[392548679,1761641972394,273.73,0.00013699,2]
[392548709,1761642632231,-273.73,0.00020187,2]
[392548710,1761642632240,-273.73,0.00026676,2]
[392548711,1761642632251,-150.0,0.00028258,4]
[392548712,1761642632260,-166.66,0.00028661,30]
[392548713,1761642632270,-152.0,0.00028907,3]
[392548714,1761642632280,-160.0,0.00029482,2]
[392548715,1761642632290,-600.0,0.00029956,7]
[392548716,1761642632301,-500.0,0.00029956,7]
[392548717,1761642632311,-500.0,0.00029956,7]
[392548718,1761642632320,-788.58,0.00030232,2]
[392548719,1761642632330,-1600.0,0.00030296,2]
[392548720,1761642632339,-1704.14,0.00030297,2]
[392548721,1761642632348,-150.0,0.00030341,2]
[392548722,1761642632358,-251.34,0.00030343,2]
[392548723,1761642632367,-301.0,0.00030362,2]
[392548724,1761642632376,-400.0,0.00030362,2]
[392548725,1761642632387,-162.57,0.00030363,2]
[392548726,1761642632397,-500.0,0.00030363,2]
[392548727,1761642632406,-500.0,0.00030363,2]
[392548728,1761642632415,-500.0,0.00030363,2]
[392548729,1761642632424,-500.0,0.00030363,2]
[392548730,1761642632434,-500.0,0.00030363,2]
[392548731,1761642632444,-500.0,0.00030363,2]
[392548732,1761642632453,-500.0,0.00030363,2]
[392548733,1761642632462,-500.0,0.00030363,2]
[392548734,1761642632471,-500.0,0.00030363,2]
[392548735,1761642632481,-534.0529808,0.00030363,2]
[392548736,1761642632491,-1200.0,0.00030364,2]
[392548737,1761642632509,-250.0,0.00030365,2]
[392548738,1761642632519,-250.0,0.00030365,2]
[392548739,1761642632529,-264.08401164,0.00030365,2]
[392548740,1761642632539,-5000.0,0.00030383,2]
[392548741,1761642632549,-3123.9,0.00030385,2]
[392548742,1761642632559,-274.37842103,0.00030419,2]
[392548743,1761642632569,-250.0,0.00030426,2]
[392548744,1761642632578,-600.0,0.00030778,7]
[392548745,1761642632588,-150.0,0.0003081,7]
[392548746,1761642632598,-152.0,0.00030832,4]
[392548748,1761642632607,-1003.76973602,0.00030999,2]
[392548750,1761642632617,-161.56,0.00031,31]
[392548752,1761642632626,-22204.67584118,0.00031,2]
[392548754,1761642632641,-8795.32415982,0.00031,2]
[392548757,1761642632651,-168.0,0.00031069,2]
[392548759,1761642632661,-980.328,0.00031105,2]
[392548760,1761642632670,-904.0,0.00031105,2]
[392548763,1761642632680,-168.0,0.00031114,2]
[392548765,1761642632689,-168.0,0.00031182,2]
[392548767,1761642632699,-796.97167208,0.00031274,2]
[392548769,1761642632708,-166.66,0.00031288,2]
[392548771,1761642632719,-796.97167199,0.00031289,2]
[392548773,1761642632728,-891.8528,0.00031289,2]
[392548775,1761642632738,-188.902,0.0003129,28]
[392548777,1761642632747,-940.42916513,0.0003129,2]
[392548779,1761642632756,-1067.20756626,0.0003129,2]
[392548781,1761642632766,-37784.26308872,0.0003129,2]
[392548786,1761642632807,-188.78578637,0.00031181,2]
[392548789,1761642632817,-413.73788577,0.00031181,2]
[392548792,1761642632826,-62.36432786,0.0003129,2]
[392548803,1761642632877,-199.40184117,0.00031181,2]
[392548805,1761642632888,-74.18965552,0.0003129,2]
[392548809,1761642632919,-5133.0765279,0.0003129,2]
[392548811,1761642632930,-390.3027252,0.00031299,120]
[392548813,1761642632939,-659.6207469,0.00031299,120]
[392548895,1761642638237,-787.61,0.00031299,120]
[392549051,1761642640275,-5726.5,0.00031299,120]
[392549058,1761642640329,-940.26366904,0.00031299,120]
[392549060,1761642640338,-5000.0,0.000313,2]
[392549062,1761642640347,-353.88633096,0.00031304,2]
[392549074,1761642640453,-443.08534103,0.00031304,2]
[392549076,1761642640462,-795.42751474,0.00031307,2]
[392549406,1761642645081,-629.57248526,0.00031307,2]
[392549407,1761642645090,-940.42916511,0.00031316,2]
[392549408,1761642645099,-796.97167199,0.00031318,2]
[392549409,1761642645109,-940.42916511,0.00031329,2]
[392549410,1761642645118,-796.97167199,0.00031333,2]
[392549411,1761642645127,-1000.0,0.00031342,2]
[392549412,1761642645136,-940.42916511,0.00031342,2]
[392549413,1761642645145,-796.97167199,0.00031348,2]
[392549414,1761642645155,-168.0,0.00031355,2]
[392549415,1761642645164,-940.42916511,0.00031355,2]
[392549416,1761642645173,-151.0,0.0003136,7]
[392549417,1761642645183,-796.97167199,0.00031363,2]
[392549418,1761642645193,-940.42916511,0.00031368,2]
[392549419,1761642645202,-184.0,0.0003137,120]
[392549420,1761642645212,-500.0,0.00031373,5]
[392549421,1761642645221,-501.3157321,0.00031373,5]
[392549422,1761642645230,-25431.21701263,0.00031374,2]
[392549471,1761642646463,-1128.86605831,0.00031374,2]
[392549589,1761643468352,550.43,0.00015039,2]
[392549618,1761643507994,88849.57,0.00015,2]
[392549619,1761643508027,188000.0,0.00015,2]
[392549620,1761643508053,15000.0,0.00015,2]
[392549621,1761643508076,15000.0,0.00015,2]
[392549622,1761643508099,15000.0,0.00015,2]
[392549623,1761643508124,15000.0,0.00015,2]
[392549624,1761643508146,15000.0,0.00015,2]
[392549625,1761643508169,15000.0,0.00015,2]
[392549626,1761643508191,15000.0,0.00015,2]
[392549627,1761643508213,15000.0,0.00015,2]
[392549628,1761643508236,15000.0,0.00015,2]
[392549629,1761643508257,15000.0,0.00015,2]
[392549630,1761643508280,15000.0,0.00015,2]
[392549631,1761643508303,15000.0,0.00015,2]
[392549632,1761643508326,15000.0,0.00015,2]
[392549633,1761643508348,15000.0,0.00015,2]
[392549634,1761643508371,15000.0,0.00015,2]
[392549635,1761643508395,15000.0,0.00015,2]
[392549636,1761643508419,15000.0,0.00015,2]
[392549637,1761643508443,15000.0,0.00015,2]
[392549638,1761643508467,15000.0,0.00015,2]
[392549639,1761643508489,15000.0,0.00015,2]
[392549640,1761643508512,15000.0,0.00015,2]
[392549641,1761643508534,15000.0,0.00015,2]
[392549642,1761643508557,15000.0,0.00015,2]
[392549643,1761643508579,15000.0,0.00015,2]
[392549644,1761643508602,15000.0,0.00015,2]
[392549645,1761643508630,15000.0,0.00015,2]
[392549646,1761643508653,15000.0,0.00015,2]
[392549647,1761643508681,15000.0,0.00015,2]
[392549648,1761643508703,15000.0,0.00015,2]
[392549649,1761643508727,15000.0,0.00015,2]
[392549650,1761643508752,15000.0,0.00015,2]
[392549651,1761643508775,15000.0,0.00015,2]
[392549652,1761643508799,15000.0,0.00015,2]
[392549653,1761643508822,15000.0,0.00015,2]
[392549654,1761643508845,15000.0,0.00015,2]
[392549655,1761643508868,15000.0,0.00015,2]
[392549656,1761643508891,15000.0,0.00015,2]
[392549657,1761643508914,15000.0,0.00015,2]
[392549658,1761643508939,15000.0,0.00015,2]
[392549659,1761643508961,15000.0,0.00015,2]
[392549660,1761643508985,15000.0,0.00015,2]
[392549661,1761643509009,15000.0,0.00015,2]
[392549662,1761643509034,15000.0,0.00015,2]
[392549663,1761643509057,15000.0,0.00015,2]
[392549664,1761643509081,15000.0,0.00015,2]